{"text_format":"1","workbook":"xlsx","n_sheets":1,"sheets":["Лист1"],"not_rendered":{"charts":0,"images":0,"macros":1,"external_links":0,"defined_names":0,"comments":0,"pivot_tables":0},"unopened":[],"bounds":{"document_bytes":16777216,"sheet_cells":100000,"rows_first":2000,"rows_last":500,"rows_between":2000,"halvings":0,"cell_chars":16384,"cell_head_chars":4096},"cells_cut":0,"cells_raw":0,"read":"whole","date_system":"1900"}

{"sheet":"Лист1","index":0,"n_rows":43,"n_cols":3,"rows_kept":43,"cut":false,"hidden":false,"merged":[]}
["Дефлекторы окон 4-5 door AUDI А3/S3, 2005-2012 Hb, NLD.SAUDA30532",{"$f":"RegExpExtract(A1,C$1)","v":"2005-2012"},"\\d{4}-\\d{4}|\\d{4}"]
["Дефлекторы окон 4 door FORD RANGER 2006-2011 /MAZDA BT50 2006-",{"$f":"RegExpExtract(A2,C$1)","v":"2006-2011"}]
["Дефлекторы окон 4 door  GAZ Газель 1993-",{"$f":"RegExpExtract(A3,C$1)","v":"1993"}]
["Дефлекторы окон 4 door HYUNDAI Creta 2015- /HYUNDAI ix25",{"$f":"RegExpExtract(A4,C$1)","v":"2015"}]
["Дефлекторы окон 4 door HYUNDAI ELANTRA 2016-",{"$f":"RegExpExtract(A5,C$1)","v":"2016"}]
["Дефлекторы окон 4 door Hyundai Solaris 2017-",{"$f":"RegExpExtract(A6,C$1)","v":"2017"}]
["Дефлекторы окон 4 door HYUNDAI SONATA 2000- (Тагаз), NLD.SHYSON0032",{"$f":"RegExpExtract(A7,C$1)","v":"2000"}]
["Дефлекторы окон 4 door KIA SORENTO 2003-2008, NLD.SKISOR0332",{"$f":"RegExpExtract(A8,C$1)","v":"2003-2008"}]
["Дефлекторы окон 4 door LADA LARGUS Wg, 2012- , NLD.SVAZLA1232",{"$f":"RegExpExtract(A9,C$1)","v":"2012"}]
["Дефлекторы окон 4 door для LAND ROVER Range Rover 2002-2012",{"$f":"RegExpExtract(A10,C$1)","v":"2002-2012"}]
["Дефлекторы окон 4 door LEXUS RX, 2015-",{"$f":"RegExpExtract(A11,C$1)","v":"2015"}]
["Дефлекторы окон 4 door LEXUS RX3500/450h, 2009-, NLD.SLRX3500932",{"$f":"RegExpExtract(A12,C$1)","v":"3500"}]
["Дефлекторы окон, NLD.SMAMA60832 4 door MAZDA 6 sd. 2008-2012",{"$f":"RegExpExtract(A13,C$1)","v":"6083"}]
["Дефлекторы окон 4 door MAZDA CX7 2006-2012 (хром), NLD.SMACX70632-cr",{"$f":"RegExpExtract(A14,C$1)","v":"2006-2012"}]
["Дефлекторы окон MERCEDES Е Класс SD 4 door 2016- темный",{"$f":"RegExpExtract(A15,C$1)","v":"2016"}]
["Дефлекторы окон 4 door MERCEDES GLC 2015-",{"$f":"RegExpExtract(A16,C$1)","v":"2015"}]
["Дефлекторы окон 4 door MERCEDES M-CLASS 1998-2004, NLD.SMERM9832",{"$f":"RegExpExtract(A17,C$1)","v":"1998-2004"}]
["Дефлекторы окон 2 door MERCEDES Sprinter 2006-",{"$f":"RegExpExtract(A18,C$1)","v":"2006"}]
["Дефлекторы окон 4 door MITSUBISHI Pajero Sport 2016-",{"$f":"RegExpExtract(A19,C$1)","v":"2016"}]
["Дефлекторы окон 4 door NISSAN ALMERA Classic 2005-2012/SYLPHY 2000-2005, NLD.SNIALC0532",{"$f":"RegExpExtract(A20,C$1)","v":"2005-2012"}]
["Дефлекторы окон NISSAN Murano 2015-, 4ч. темный",{"$f":"RegExpExtract(A21,C$1)","v":"2015"}]
["Дефлекторы окон 4 door NISSAN QASHQAI+2  2008-2014",{"$f":"RegExpExtract(A22,C$1)","v":"2008-2014"}]
["Дефлекторы окон 2 door NISSAN TEANA NEW 2008-, NLD.SNITEA0632/2",{"$f":"RegExpExtract(A23,C$1)","v":"2008"}]
["Дефлекторы окон 4 door OPEL ASTRA hb 2004-, NLD.SOPASTH0432",{"$f":"RegExpExtract(A24,C$1)","v":"2004"}]
["Дефлекторы окон 4 door PEUGEOT 308 2007-, NLD.SPE308H0732",{"$f":"RegExpExtract(A25,C$1)","v":"2007"}]
["Дефлекторы окон 4,5 Door RENAULT CLIO, HB, 2009-, NLD.SRECLI0932",{"$f":"RegExpExtract(A26,C$1)","v":"2009"}]
["Дефлекторы окон 4 door RENAULT MEGANE, Hb, 2008-, NLD.SREMEGH0832",{"$f":"RegExpExtract(A27,C$1)","v":"2008"}]
["Дефлекторы окон 2,5 Door RENAULT SANDERO, HB, 2009-2014",{"$f":"RegExpExtract(A28,C$1)","v":"2009-2014"}]
["Дефлекторы окон 2 door Scania G 2005-",{"$f":"RegExpExtract(A29,C$1)","v":"2005"}]
["Дефлекторы окон 4 door SKODA FABIA 2007- Hb, NLD.SSCFABH0732",{"$f":"RegExpExtract(A30,C$1)","v":"2007"}]
["Дефлекторы окон 4 door SKODA Superb 2008-, NLD.SSCSUP0832",{"$f":"RegExpExtract(A31,C$1)","v":"2008"}]
["Дефлекторы окон 4 door SSANGYONG NEW ACTYON 2010-, NLD.SSSACT1032",{"$f":"RegExpExtract(A32,C$1)","v":"2010"}]
["Дефлекторы окон 4 door SSANGYONG STAVIC 2013-",{"$f":"RegExpExtract(A33,C$1)","v":"2013"}]
["Дефлекторы окон 4 door SUBARU IMPREZA, 5D Hatchback 2008-2011",{"$f":"RegExpExtract(A34,C$1)","v":"2008-2011"}]
["Дефлекторы окон 4 door SUZUKI SX4 Hb 4 Door 2006-2013",{"$f":"RegExpExtract(A35,C$1)","v":"2006-2013"}]
["Дефлекторы окон 4 door TOYOTA CAMRY 2006-2011 (хром), NLD.STOCAM0632-Cr",{"$f":"RegExpExtract(A36,C$1)","v":"2006-2011"}]
["ДЕФЛЕКТОРЫ ОКОН С СЕРЕБР. ОКАНТОВКОЙ TOYOTA LC150 09/13, LC150 2017-, 4 ШТ, NLD.STOLCP0932CR",{"$f":"RegExpExtract(A37,C$1)","v":"2017"}]
["Дефлекторы окон 4 door VW PASSAT 2006-2010 Sedan (хром), NLD.SVOPAS0632-cr",{"$f":"RegExpExtract(A38,C$1)","v":"2006-2010"}]
["Дефлекторы окон 4 door темный VOLKSWAGEN Tiguan 2016-",{"$f":"RegExpExtract(A39,C$1)","v":"2016"}]
["Дефлекторы окон VW T6 2015-, 2 шт.",{"$f":"RegExpExtract(A40,C$1)","v":"2015"}]
["2011-2013 ДЕФЛЕКТОРЫ ОКОН С СЕРЕБР. ОКАНТОВКОЙ TOYOTA LC150 09/13, LC150 2017-, 4 ШТ, NLD.STOLCP0932CR",{"$f":"RegExpExtract(A41,C$1)","v":"2011-2013"}]
["Дефлекторы окон 4-5 door AUDI А3/S3; 1993-2014, Hb, NLD.SAUDA30532",{"$f":"RegExpExtract(A42,C$1)","v":"1993-2014"}]
["Дефлекторы окон 4 door PEUGEOT 308 .2007-2011|NLD.SPE308H0732",{"$f":"RegExpExtract(A43,C$1)","v":"2007-2011"}]